bitfinex-derivatives/quotes_ETHF0:USTF0_20250908
["timestamp","ask_amount","ask_price","bid_price","bid_amount"]
[1757352141471,1.33461125,4339.7,4339.6,0.7195]
[1757352142279,1.03871125,4339.7,4339.6,0.7195]
[1757352142476,0.83641125,4339.7,4339.6,0.7195]
[1757352142680,0.63201125,4339.7,4339.6,0.7195]
[1757352142979,0.2959,4340.5,4339.7,0.305]
[1757352143277,1.03852371,4340.4,4340.3,0.2145]
[1757352143475,1.33442371,4340.4,4340.3,0.5195]
[1757352143680,1.33442371,4340.4,4340.3,0.7195]
[1757352144780,1.03852371,4340.4,4340.3,0.7195]
[1757352145282,0.4067,4340.4,4340.3,0.7195]
[1757352145481,0.7026,4340.4,4340.3,0.7195]
[1757352145879,0.2044,4340.4,4340.3,0.7195]
[1757352146176,0.7026,4340.8,4340.7,0.7195]
[1757352146376,1.33355681,4340.8,4340.7,0.7195]
[1757352148183,1.33355681,4340.8,4340.7,0.5195]
[1757352149187,1.33355681,4340.8,4340.2,0.305]
[1757352149385,0.4067,4340.3,4340.2,0.7195]
[1757352149785,0.2959,4340.9,4340.3,0.305]
[1757352149984,1.33365075,4340.8,4340.7,0.5195]
[1757352150284,1.33365075,4340.8,4340.7,0.305]
[1757352150484,1.33365075,4340.8,4340.0,0.1279]
[1757352150684,0.4067,4340.2,4340.1,0.7195]
[1757352151084,0.2044,4340.2,4340.1,0.7195]
[1757352151585,0.7026,4340.2,4340.1,0.7195]
[1757352152086,0.4067,4340.2,4340.1,0.7195]
[1757352152285,0.7026,4340.2,4340.1,0.7195]
[1757352152686,0.7026,4340.2,4340.1,0.5195]
[1757352153587,0.7026,4340.2,4340.1,0.7195]
[1757352153789,1.33404514,4340.2,4340.1,0.7195]
[1757352154687,0.63144514,4340.2,4340.1,0.7195]
[1757352156488,0.83584514,4340.2,4340.1,0.7195]
[1757352157290,0.63144514,4340.2,4340.1,0.7195]
[1757352159083,0.63144514,4340.2,4340.1,0.4888]
[1757352159789,1.33404514,4340.2,4340.1,0.4888]
[1757352160892,0.63144514,4340.2,4340.1,0.4888]
[1757352161192,1.33404514,4340.2,4340.1,0.4888]
[1757352161688,1.03814514,4340.2,4340.1,0.4888]
[1757352161892,0.83584514,4340.2,4340.1,0.4888]
[1757352162079,0.63144514,4340.2,4340.1,0.4888]
[1757352162388,0.2044,4341.0,4340.9,0.7195]
[1757352163390,0.2959,4341.2,4341.0,0.1279]
[1757352163597,0.5003,4341.2,4341.1,0.7195]
[1757352163987,0.7026,4341.2,4341.1,0.7195]
[1757352164496,0.2044,4341.2,4341.1,0.7195]
[1757352166191,0.2959,4341.5,4341.2,0.3006]
[1757352166493,0.2959,4341.5,4341.4,0.731]
[1757352166494,0.6967,4341.5,4341.4,0.731]
[1757352166793,0.1996,4341.5,4341.4,0.731]
[1757352166995,0.6992,4341.5,4341.4,0.731]
[1757352168983,0.6992,4341.5,4341.4,0.5003]
[1757352169189,0.8235,4341.5,4341.4,0.7147]
[1757352169700,0.8235,4341.5,4341.4,0.4141]
[1757352170597,0.8235,4341.5,4341.4,0.7147]
[1757352171998,0.2984,4341.9,4341.8,0.731]
[1757352172592,0.498,4341.9,4341.8,0.731]
[1757352172795,0.1248,4343.0,4341.9,0.3006]
[1757352172998,0.498,4342.0,4341.9,0.731]
[1757352174393,0.498,4342.4,4342.3,0.4304]
[1757352174594,0.498,4342.4,4342.3,0.731]
[1757352174794,1.32951353,4342.4,4342.3,0.731]
[1757352175897,0.63031353,4342.4,4342.3,0.731]
[1757352176199,0.92871353,4342.4,4342.3,0.731]
[1757352176700,1.12831353,4342.4,4342.3,0.731]
[1757352177592,1.32951353,4342.4,4342.3,0.731]
[1757352180906,0.92871353,4342.4,4342.3,0.731]
[1757352181297,0.63031353,4342.4,4342.3,0.731]
[1757352181496,0.82991353,4342.4,4342.3,0.731]
[1757352181701,1.32951353,4342.4,4342.3,0.6634]
[1757352181898,1.32951353,4342.4,4342.3,0.4304]
[1757352182094,1.32951353,4342.4,4340.5,1.1645]
[1757352182095,0.1243,4341.5,4340.9,0.3006]
[1757352182295,0.8235,4341.0,4340.5,0.18167387]
[1757352182603,0.2984,4341.4,4341.0,0.1232]
[1757352182793,0.2984,4341.9,4341.3,0.4304]
[1757352182993,1.02443986,4341.8,4341.7,0.731]
[1757352183403,1.02443986,4341.8,4341.7,0.4304]
[1757352183599,1.32283986,4341.8,4341.7,0.4304]
[1757352184200,1.32283986,4341.8,4341.7,0.731]
[1757352185007,1.12163986,4341.8,4341.7,0.731]
[1757352185299,0.82323986,4341.8,4341.7,0.731]
[1757352185504,0.1243,4342.5,4342.4,0.2144]
[1757352185707,0.8235,4342.5,4342.4,0.3594]
[1757352185898,1.44461195,4342.5,4342.4,0.3594]
[1757352186900,1.44461195,4342.5,4341.8,0.3006]
[1757352187105,0.2984,4342.3,4341.9,0.4474]
[1757352187305,0.498,4342.0,4341.9,0.964]
[1757352187503,0.8235,4342.0,4341.9,0.964]
[1757352187708,1.44461195,4342.0,4341.9,0.964]
[1757352188008,0.62111195,4342.0,4341.9,0.964]
[1757352188207,0.498,4342.1,4342.0,0.731]
[1757352188409,1.11973323,4342.1,4342.0,0.731]
[1757352189008,0.82133323,4342.1,4342.0,0.731]
[1757352189207,0.62173323,4342.1,4342.0,0.8542]
[1757352191912,1.11973323,4342.1,4342.0,0.8542]
[1757352192410,1.32093323,4342.1,4342.0,0.731]
[1757352192999,0.1243,4342.0,4341.4,33.177]
[1757352193205,0.6992,4341.7,4341.6,0.731]
[1757352193406,1.32093323,4341.7,4341.6,0.731]
[1757352193702,0.498,4341.7,4341.6,0.731]
[1757352194210,1.11945527,4341.7,4341.6,0.964]
[1757352194711,0.82105527,4341.7,4341.6,0.964]
[1757352195303,0.62026793,4341.7,4341.6,0.964]
[1757352196013,0.6966,4342.3,4342.2,0.7464]
[1757352196314,1.31719027,4342.3,4342.2,0.9794]
[1757352197515,0.62059027,4342.3,4342.2,0.9794]
[1757352198209,0.3204,4342.9,4342.3,0.3239]
[1757352198512,1.33912938,4342.8,4342.7,0.4225]
[1757352198714,1.33912938,4342.8,4342.7,0.2123]
[1757352199111,1.33912938,4342.8,4342.7,0.7464]
[1757352199715,0.1273,4344.0,4342.7,0.7464]
[1757352199716,0.5191,4343.4,4343.3,0.7464]
[1757352200017,0.7186,4343.4,4343.3,0.9804]
[1757352200409,0.7186,4343.9,4343.8,0.2123]
[1757352200610,0.5255,4343.5,4343.4,0.5362]
[1757352200817,0.8459,4343.5,4343.4,0.7464]
[1757352201010,0.7186,4343.5,4343.4,0.7464]
[1757352201204,0.1273,4344.0,4343.4,0.7464]
[1757352201410,0.1987,4343.9,4343.8,0.4225]
[1757352201618,0.5191,4343.9,4343.8,0.7464]
[1757352202310,0.1987,4344.0,4343.9,0.3239]
[1757352202513,0.8459,4344.0,4343.9,0.9804]
[1757352202709,0.7186,4344.0,4343.9,0.9804]
[1757352203110,0.5191,4344.0,4343.9,0.9804]
[1757352203316,0.3204,4344.4,4344.0,0.3239]
[1757352203520,0.7186,4344.4,4344.3,0.2123]
[1757352203720,0.7186,4344.9,4344.8,0.2123]
[1757352204014,0.7186,4344.9,4344.8,0.4463]
[1757352204813,0.7186,4344.9,4344.8,0.9804]
[1757352205322,0.7186,4344.9,4344.8,0.4463]
[1757352205818,0.7186,4344.9,4344.8,0.234]
[1757352206513,0.7186,4344.9,4344.8,0.4463]
[1757352206913,0.7186,4344.9,4344.8,0.234]
[1757352207213,0.7186,4344.9,4344.0,0.1239]
[1757352207214,0.7186,4344.9,4344.2,0.3239]
[1757352207515,0.1273,4344.5,4344.4,0.2123]
[1757352207715,0.8459,4344.5,4344.4,0.2123]
[1757352208019,0.8459,4344.5,4344.4,0.7464]
[1757352208215,0.3204,4344.5,4344.4,0.7464]
[1757352208420,0.5191,4344.5,4344.4,0.7464]
[1757352209117,0.5191,4344.9,4344.8,0.7464]
[1757352210520,0.3204,4345.4,4344.8,0.7464]
[1757352210725,0.7186,4344.9,4344.8,0.7464]
[1757352211621,1.33802361,4344.9,4344.8,0.4225]
[1757352212621,1.33802361,4344.9,4344.8,0.7464]
[1757352213327,1.33802361,4344.9,4344.8,0.4225]
[1757352213828,0.7186,4344.9,4344.8,0.4225]
[1757352214625,0.7186,4344.9,4344.8,0.7464]
[1757352215230,0.7186,4344.9,4344.8,0.4225]
[1757352216324,0.7186,4344.9,4344.8,0.2123]
[1757352216522,0.7186,4344.9,4344.8,0.099]
[1757352217135,0.7186,4344.9,4344.8,0.088]
[1757352217528,0.3982,4344.2,4344.1,0.5362]
[1757352217728,0.7186,4344.2,4344.1,0.8094]
[1757352217934,0.7186,4344.2,4343.5,0.53416]
[1757352217935,0.7186,4344.3,4343.6,0.3239]
[1757352218235,0.7186,4344.3,4343.8,0.3239]
[1757352218424,0.7186,4344.3,4343.9,0.234]
[1757352218626,0.5191,4343.5,4343.4,0.7464]
[1757352218826,0.5191,4343.5,4343.4,0.9804]
[1757352219529,0.1273,4344.0,4343.4,0.9804]
[1757352219830,0.1273,4345.0,4343.6,0.3239]
[1757352220036,0.1987,4343.7,4343.6,0.7464]
[1757352220940,0.1273,4345.0,4343.7,0.3239]
[1757352221133,0.84973403,4344.9,4343.7,0.3239]
[1757352221333,0.61954403,4344.8,4343.7,0.3239]
[1757352221530,0.2874,4344.7,4343.7,0.3239]
[1757352221735,0.2874,4344.5,4343.7,0.3239]
[1757352222137,0.6856,4344.5,4344.4,0.2123]
[1757352222335,1.01819714,4344.5,4344.4,0.9804]
[1757352222840,0.3982,4344.5,4344.4,0.9804]
[1757352223043,0.6856,4344.5,4344.4,0.9804]
[1757352223337,1.30560263,4344.5,4344.4,0.5579]
[1757352224042,1.33840263,4344.5,4344.4,0.234]
[1757352224637,1.33840263,4344.5,4344.0,0.3239]
[1757352224838,0.6856,4344.2,4344.1,0.234]
[1757352225534,0.6856,4344.2,4344.1,0.5579]
[1757352226339,0.6856,4344.2,4344.1,0.7702]
[1757352227043,0.6856,4344.2,4344.1,0.431]
[1757352227339,0.6856,4344.2,4344.1,0.7379]
[1757352227536,5.53762225,4344.2,4343.3,0.13065346]
[1757352227736,0.6934,4343.2,4343.1,0.3069]
[1757352228041,0.6934,4343.2,4342.6,0.3069]
[1757352228042,1.31523225,4343.2,4342.6,0.3069]
[1757352228233,0.62175831,4343.1,4342.6,0.13280314]
[1757352228437,0.2111,4342.8,4342.7,0.7141]
[1757352229243,0.4067,4342.8,4342.7,0.7141]
[1757352230044,0.6934,4342.8,4342.7,0.7141]
[1757352231345,0.4067,4342.8,4342.7,0.7141]
[1757352231745,0.6934,4342.8,4342.7,0.7141]
[1757352234347,0.6934,4342.8,4342.7,0.9481]
[1757352236046,0.6934,4342.8,4342.7,0.7141]
[1757352236354,0.6934,4342.8,4342.7,0.9481]
[1757352237649,0.6934,4342.8,4342.7,0.7141]
[1757352238752,0.4067,4342.8,4342.7,0.7141]
[1757352238939,0.6934,4342.8,4342.7,0.7141]
[1757352239848,0.4067,4342.8,4342.7,0.7141]
[1757352240244,0.6934,4342.8,4342.7,0.5039]
[1757352241040,0.4067,4342.8,4342.7,0.7141]
[1757352247253,0.6934,4342.8,4342.5,0.1232]
[1757352247460,0.6934,4342.6,4342.5,0.3069]
[1757352247755,1.31460875,4342.6,4342.5,0.3069]
[1757352248151,1.31460875,4342.6,4342.5,0.5039]
[1757352248554,1.31460875,4342.6,4342.5,0.3069]
[1757352250359,1.31460875,4342.6,4342.5,0.5039]
[1757352251758,1.31460875,4342.6,4342.5,0.3069]
[1757352253459,1.31460875,4342.6,4342.5,0.6321]
[1757352253658,1.02790875,4342.6,4342.5,0.8423]
[1757352255958,0.6912,4343.9,4343.8,0.2018]
[1757352256150,0.2055,4343.9,4343.8,0.7062]
[1757352259061,0.2868,4344.4,4343.8,0.4073]
[1757352259264,0.6913,4344.9,4344.8,0.5007]
[1757352259565,0.6913,4344.9,4344.3,0.2989]
[1757352259766,0.2055,4344.1,4344.0,0.8279]
[1757352261460,0.6913,4344.1,4344.0,0.5007]
[1757352261668,0.6913,4344.1,4344.0,0.2989]
[1757352262067,0.6913,4344.1,4344.0,0.6224]
[1757352262264,0.4045,4344.1,4344.0,0.8279]
[1757352262571,0.1185,4345.0,4344.0,0.8279]
[1757352262572,0.2868,4344.7,4344.1,0.2989]
[1757352262771,0.6913,4344.7,4344.6,0.7062]
[1757352264761,0.2868,4345.1,4344.6,0.7062]
[1757352264966,0.6913,4345.1,4345.0,0.6224]
[1757352265167,4.6913,4345.1,4345.0,0.6224]
[1757352266568,4.6913,4345.1,4345.0,0.5007]
[1757352267069,4.6913,4345.1,4345.0,0.2989]
[1757352267466,4.6913,4345.1,4344.5,0.1217]
[1757352267773,0.6913,4345.1,4344.5,0.1217]
[1757352267968,0.2055,4344.6,4344.5,0.8279]
[1757352268369,0.82139188,4344.6,4344.5,0.8279]
[1757352269669,1.02039188,4344.6,4344.5,0.8279]
[1757352269871,0.61589188,4344.6,4344.5,0.8279]
[1757352270072,0.2868,4345.9,4344.6,0.2989]
[1757352270374,0.2055,4344.7,4344.6,0.7062]
[1757352270566,0.6913,4344.7,4344.1,0.2989]
[1757352270767,0.4045,4344.1,4344.0,0.529]
[1757352271069,0.2055,4344.1,4344.0,0.529]
[1757352271972,0.2055,4344.1,4344.0,0.8279]
[1757352274576,0.6913,4344.1,4344.0,0.6224]
[1757352275471,0.4045,4344.1,4344.0,0.8279]
[1757352275872,0.6913,4344.1,4344.0,0.8279]
[1757352277275,0.4045,4344.1,4344.0,0.8279]
[1757352278276,0.61560631,4344.2,4344.0,0.8279]
[1757352278476,0.2868,4345.1,4344.0,0.529]
[1757352278675,0.61595364,4345.0,4344.0,0.529]
[1757352278866,0.2055,4344.6,4344.5,0.529]
[1757352279070,0.82145364,4344.6,4344.5,0.8279]
[1757352279270,0.61595364,4344.6,4344.5,0.8279]
[1757352279465,0.61595364,4345.3,4344.5,0.529]
[1757352279674,0.84610364,4345.3,4344.6,0.2989]
[1757352279975,0.84610364,4345.3,4344.5,0.1217]
[1757352279976,0.82145364,4345.2,4345.1,0.7062]
[1757352280172,1.02045364,4345.2,4345.1,0.7062]
[1757352280477,1.30725364,4345.2,4345.1,0.5007]
[1757352281177,1.30725364,4345.2,4345.1,0.2989]
[1757352281374,0.1185,4345.0,4343.0,33.2877]
[1757352281690,0.90275364,4344.9,4343.6,0.2989]
[1757352281879,0.61595364,4344.8,4343.6,0.2989]
[1757352282067,0.90275364,4344.7,4343.6,0.2989]
[1757352282273,0.2868,4344.5,4343.6,0.2989]
[1757352282475,0.61595364,4344.4,4343.6,0.2989]
[1757352282670,0.2868,4344.3,4343.6,0.2989]
[1757352282872,1.30725364,4344.2,4344.1,0.5007]
[1757352283176,1.02045364,4344.2,4344.1,0.7062]
[1757352283572,0.82145364,4344.2,4344.1,0.7062]
[1757352283779,0.61595364,4344.2,4344.1,0.7062]
[1757352283975,0.61595364,4344.2,4344.0,0.1217]
[1757352283976,0.2055,4345.0,4344.9,0.7062]
[1757352284278,1.30892379,4345.0,4344.9,0.5007]
[1757352284473,1.30925864,4345.0,4344.9,0.5007]
[1757352284680,1.30925864,4345.0,4344.9,0.2989]
[1757352284871,1.30925864,4345.0,4344.9,0.5007]
[1757352288676,1.30925864,4345.0,4344.9,0.2989]
[1757352289680,1.42885864,4345.0,4344.6,0.307]
[1757352289880,0.7103,4344.7,4344.6,0.5196]
[1757352290079,1.32795864,4344.7,4344.6,0.5196]
[1757352292877,1.04015864,4344.7,4344.6,0.7345]
[1757352294278,1.32795864,4344.7,4344.6,0.7345]
[1757352294578,1.32795864,4344.7,4344.1,0.234]
[1757352294777,0.1196,4345.0,4344.2,0.5196]
[1757352294778,0.7103,4344.3,4344.2,0.5196]
[1757352294983,1.32795864,4344.3,4344.2,0.5196]
[1757352296484,1.04015864,4344.3,4344.2,0.7345]
[1757352297385,0.61765864,4344.3,4344.2,0.7345]
[1757352297679,0.61765864,4344.8,4344.2,0.7345]
[1757352297886,0.2133,4344.4,4344.3,0.307]
[1757352298184,0.83095864,4344.4,4344.3,0.7345]
[1757352299287,1.04015864,4344.4,4344.3,0.7345]
[1757352300186,1.32795864,4344.4,4344.3,0.7345]
[1757352300690,1.32795864,4344.4,4344.0,0.1217]
[1757352300889,0.4225,4344.2,4344.1,0.7345]
[1757352301189,1.04015864,4344.2,4344.1,0.7345]
[1757352302877,1.32795864,4344.2,4344.1,0.7345]
[1757352304588,1.32795864,4344.2,4344.1,0.5196]
[1757352305478,0.83095864,4344.2,4344.1,0.7345]
[1757352306685,1.04015864,4344.2,4344.1,0.7345]
[1757352306993,0.61765864,4344.2,4344.1,0.7345]
[1757352307286,0.4225,4344.6,4344.5,0.5563]
[1757352307481,1.32864413,4344.6,4344.5,0.5563]
[1757352307887,1.32864413,4344.6,4344.5,0.8633]
[1757352308988,1.32864413,4344.6,4344.0,0.1217]
[1757352309190,0.7103,4344.2,4344.1,0.307]
[1757352309394,1.32864413,4344.2,4344.1,0.5196]
[1757352310492,0.61834413,4344.2,4344.1,1.1488]
[1757352310686,0.5011,4345.3,4345.2,0.2126]
[1757352310896,0.7103,4345.3,4345.2,0.5196]
[1757352312795,0.7103,4345.3,4345.1,0.307]
[1757352312997,0.2878,4345.2,4345.1,0.307]
[1757352313197,0.7103,4345.2,4345.1,0.307]
[1757352313398,0.7103,4345.2,4345.0,0.1288]
[1757352313399,0.7103,4345.2,4344.6,0.307]
[1757352314190,0.7103,4345.2,4345.1,0.5196]
[1757352314798,0.4225,4345.2,4345.1,0.7345]
[1757352314990,0.7103,4345.2,4345.1,0.7345]
[1757352315894,0.7103,4345.2,4345.1,0.5196]
[1757352316296,0.7103,4345.2,4345.1,0.307]
[1757352316996,0.7103,4345.2,4345.1,0.5144]
[1757352318191,0.4225,4345.2,4345.1,0.7136]
[1757352319499,0.7096,4345.2,4345.1,0.7136]
[1757352320198,0.7096,4345.2,4345.1,0.5144]
[1757352322701,1.32377959,4345.2,4345.1,0.5144]
[1757352323002,1.32377959,4345.2,4345.1,0.307]
[1757352323392,1.32377959,4345.2,4344.6,0.2996]
[1757352323603,0.6854,4344.7,4344.6,0.507]
[1757352323795,1.29957959,4344.7,4344.6,0.507]
[1757352324596,1.29957959,4344.7,4344.0,0.1217]
[1757352324792,0.2008,4344.2,4344.1,0.7062]
[1757352324996,0.81497959,4344.2,4344.1,0.7062]
[1757352325198,0.61417959,4344.2,4344.1,0.7062]
[1757352325899,0.81497959,4344.2,4344.1,0.7062]
[1757352326603,0.61417959,4344.2,4344.1,0.7062]
[1757352329502,0.81497959,4344.2,4344.1,0.7062]
[1757352329697,1.01247959,4344.2,4344.1,0.7062]
[1757352330909,1.29957959,4344.2,4344.1,0.507]
[1757352331399,1.29957959,4344.2,4343.6,0.2996]
[1757352331599,0.6854,4343.7,4343.6,0.2996]
[1757352331901,1.29957959,4343.7,4343.6,0.507]
[1757352332106,1.29957959,4343.7,4343.6,0.2996]
[1757352332500,0.3983,4343.2,4343.1,0.2996]
[1757352332700,1.29957959,4343.2,4342.6,0.2996]
[1757352333008,0.3983,4342.7,4342.6,0.7062]
[1757352333307,1.01247959,4342.7,4342.6,0.7062]
[1757352335603,1.29957959,4342.7,4342.6,0.7062]
[1757352336804,0.6854,4342.2,4341.4,0.233]
[1757352337008,0.0722,4343.0,4341.4,0.233]
[1757352337009,0.2008,4341.7,4341.4,0.64756]
[1757352337406,0.2008,4341.7,4341.6,33.4576]
[1757352337913,0.3983,4341.7,4341.6,0.7062]
[1757352340006,0.6854,4341.7,4341.6,0.7062]
[1757352340408,0.6854,4341.7,4341.6,0.507]
[1757352340607,0.3983,4341.7,4341.6,0.7062]
[1757352340808,0.6854,4341.7,4341.6,0.507]
[1757352341308,0.6857,4341.6,4341.5,0.2996]
[1757352341710,0.6857,4341.6,4341.0,0.1195]
[1757352342008,0.2008,4341.2,4341.1,0.7062]
[1757352342416,0.6857,4341.2,4341.1,0.2996]
[1757352342621,0.6857,4341.2,4340.6,0.2996]
[1757352342915,0.72369556,4341.1,4341.0,0.1195]
[1757352343218,0.1151,4341.1,4341.0,0.8257]
[1757352343510,0.3159,4341.1,4341.0,0.8257]
[1757352346511,0.1151,4341.1,4341.0,0.8257]
[1757352347612,0.1151,4341.1,4341.0,1.2403]
[1757352348316,0.2875,4342.4,4341.4,0.3177]
[1757352348509,0.404,4342.3,4342.2,0.7252]
[1757352348705,34.38872457,4343.8,4342.2,0.7252]
[1757352348706,0.2974,4342.9,4342.3,0.3177]
[1757352348907,0.7014,4342.9,4342.8,0.5256]
[1757352349218,0.7014,4342.9,4342.8,0.7252]
[1757352349413,0.1978,4342.9,4342.8,0.7252]
[1757352350216,0.404,4342.9,4342.8,0.7252]
[1757352353722,1.01270086,4342.9,4342.8,0.7252]
[1757352354124,1.31010086,4342.9,4342.8,0.7252]
[1757352361031,1.31010086,4342.9,4342.8,0.5256]
[1757352361435,1.31010086,4342.9,4342.8,0.7252]
[1757352362831,1.31010086,4342.9,4342.8,0.5256]
[1757352363533,0.2974,4342.0,4340.5,0.1279]
[1757352363831,1.31010086,4341.9,4341.8,0.4075]
[1757352364032,1.31010086,4341.9,4341.8,0.7252]
[1757352364630,1.01270086,4341.9,4341.8,0.7252]
[1757352366635,1.31010086,4341.9,4341.8,0.7252]
[1757352366836,1.31010086,4341.9,4341.8,0.5256]
[1757352367035,1.31010086,4341.9,4341.0,0.3525]
[1757352367233,0.7014,4341.2,4341.1,0.5256]
[1757352367534,1.31010086,4341.2,4340.6,0.3177]
[1757352367737,0.1978,4340.7,4340.6,0.7252]
[1757352368129,0.80650086,4340.7,4340.6,0.7252]
[1757352368539,0.60870086,4340.7,4340.6,0.7252]
[1757352368732,0.60870086,4341.0,4340.6,0.7252]
[1757352369037,0.60870086,4340.9,4340.8,0.4075]
[1757352369341,0.60870086,4341.3,4340.8,0.4075]
[1757352369532,0.1978,4341.0,4340.9,0.5173]
[1757352369835,0.80959332,4341.0,4340.9,0.7252]
[1757352370232,0.61179332,4341.0,4340.9,0.7252]
[1757352370430,19.6179,4343.0,4340.9,0.7252]
[1757352370431,1.22572457,4342.2,4341.1,0.41459]
[1757352370634,0.7014,4342.2,4342.1,0.2079]
[1757352371030,0.7014,4342.2,4341.4,0.2823]
[1757352371235,0.7014,4342.2,4341.4,0.69686]
[1757352371534,0.7014,4342.1,4342.0,0.2079]
[1757352371837,0.8193,4341.5,4341.4,0.4075]
[1757352372540,0.8193,4341.5,4341.4,0.2079]
[1757352373232,0.8193,4341.5,4341.4,0.6898]
[1757352373632,0.8193,4341.5,4341.4,0.4075]
[1757352376243,0.2974,4341.5,4341.4,0.6895]
[1757352376541,0.4961,4341.5,4341.4,0.6895]
[1757352376937,0.8255,4341.5,4341.4,0.2079]
[1757352377540,0.8255,4341.5,4340.9,0.282]
[1757352377738,0.3196,4341.4,4340.9,0.69661]
[1757352378036,0.5183,4341.0,4340.9,0.7048]
[1757352378239,0.5183,4341.0,4340.9,0.4228]
[1757352378240,0.8477,4341.0,4340.9,0.4228]
[1757352379141,0.726,4341.4,4341.3,0.2128]
[1757352379538,0.5183,4341.4,4341.3,0.7048]
[1757352380536,0.5183,4341.4,4341.3,0.4228]
[1757352380739,0.726,4341.4,4341.3,0.4228]
[1757352381736,0.726,4341.4,4341.3,0.83737]
[1757352381942,0.5183,4341.4,4341.3,1.11937]
[1757352382536,0.5183,4341.4,4341.3,0.7048]
[1757352382741,0.726,4341.4,4341.3,0.4228]
[1757352383735,1.33534277,4341.4,4341.3,0.4228]
[1757352383941,1.33534277,4341.4,4341.3,0.7048]
[1757352384941,1.33534277,4341.4,4341.3,1.11937]
[1757352385147,0.92894277,4341.4,4341.3,1.11937]
[1757352385445,0.3196,4341.4,4341.3,1.11937]
[1757352385641,0.1179,4342.0,4341.5,0.41455]
[1757352385838,0.726,4341.8,4341.7,0.4228]
[1757352386045,1.33544064,4341.8,4341.7,0.4228]
[1757352386439,1.33544064,4341.8,4341.7,1.11933]
[1757352386839,0.92904064,4341.8,4341.7,1.11933]
[1757352387946,1.12774064,4341.8,4341.7,0.7048]
[1757352388146,1.33544064,4341.8,4341.7,0.83733]
[1757352390950,1.33544064,4341.8,4341.7,1.11933]
[1757352391145,1.12774064,4341.8,4341.7,1.11933]
[1757352391347,0.92904064,4341.8,4341.7,1.11933]
[1757352391546,0.60944064,4341.8,4341.7,1.11933]
[1757352391748,0.1987,4342.0,4341.9,0.83732]
[1757352391949,1.24994397,4342.0,4341.9,1.11932]
[1757352392552,1.45764397,4342.0,4341.9,0.83732]
[1757352394152,0.92954397,4342.0,4341.9,1.11932]
[1757352396044,1.24994397,4342.0,4341.9,1.11932]
[1757352396444,1.45764397,4342.0,4341.9,1.11932]
[1757352396649,1.45764397,4342.0,4341.9,0.83732]
[1757352400358,1.45764397,4342.0,4341.9,1.11992]
[1757352401752,0.60994397,4342.0,4341.9,1.11992]
[1757352402053,0.60994397,4342.0,4341.9,1.35023]
[1757352402259,0.3204,4343.0,4342.9,1.11982]
[1757352402458,0.3204,4343.0,4342.9,1.35382]
[1757352402862,0.3196,4343.4,4343.3,0.69698]
[1757352403162,0.5281,4344.0,4343.5,0.41436]
[1757352403350,0.5281,4344.0,4343.6,0.234]
[1757352403555,0.4064,4343.7,4343.6,0.234]
[1757352403955,0.726,4343.7,4343.6,0.234]
[1757352405063,0.726,4343.1,4343.0,0.2128]
[1757352405261,0.726,4343.1,4343.0,0.4468]
[1757352405954,0.726,4343.1,4343.0,0.6568]
[1757352406152,0.726,4343.1,4343.0,0.4228]
[1757352406354,0.726,4343.1,4343.0,0.6568]
[1757352408366,0.2111,4342.4,4342.3,0.6998]
[1757352408562,0.7284,4342.4,4342.3,0.234]
[1757352408763,0.7284,4342.4,4342.3,0.6517]
[1757352410764,0.7284,4342.4,4342.3,0.4477]
[1757352411066,0.4443,4342.0,4341.9,33.178]
[1757352411271,0.4443,4342.0,4341.9,33.412]
[1757352416667,0.4443,4342.0,4341.9,33.178]
[1757352416863,0.4443,4342.0,4341.9,33.412]
[1757352417270,0.8516,4342.0,4341.9,0.4477]
[1757352418065,0.8516,4342.0,4341.9,0.234]
[1757352420073,0.8516,4342.0,4341.9,0.4477]
[1757352420275,0.8516,4342.0,4341.9,0.6517]
[1757352421971,0.8516,4342.0,4341.9,0.234]
[1757352422870,0.7284,4341.1,4341.0,0.95748806]
[1757352423071,0.5322,4341.1,4341.0,1.47258806]
[1757352423578,0.3211,4341.1,4341.0,1.47258806]
[1757352423775,0.1232,4341.5,4341.0,0.64029806]
[1757352423973,0.8516,4341.5,4341.4,0.4177]
[1757352425272,0.8516,4341.5,4341.4,0.83227]
[1757352427171,0.3211,4341.9,4341.8,0.4177]
[1757352427476,0.3211,4341.9,4341.8,1.34733]
[1757352428675,0.3211,4342.4,4342.3,0.6998]
[1757352429077,0.1232,4343.0,4342.4,0.2821]
[1757352429279,0.8516,4343.0,4342.9,0.4177]
[1757352429477,1.45451268,4343.0,4342.9,0.4177]
[1757352430375,0.8516,4343.0,4342.9,0.4177]
[1757352431581,0.8516,4343.0,4342.9,0.2137]
[1757352433178,0.8516,4343.0,4342.4,0.41446]
[1757352433379,0.8516,4342.5,4342.4,0.62816]
[1757352433578,0.8516,4342.5,4342.4,0.2137]
[1757352433781,0.8516,4342.5,4342.4,0.4467]
[1757352434678,0.5322,4342.5,4342.4,0.9328]
[1757352434980,0.3211,4342.5,4342.4,0.9328]
[1757352435180,0.2111,4342.9,4342.8,0.41443]
[1757352435380,1.13548616,4342.9,4342.8,1.11423]
[1757352439078,1.13548616,4342.9,4342.4,1.26917]
[1757352439079,1.34298616,4342.9,4342.4,0.233]
[1757352439285,0.8574,4342.5,4342.4,0.6304]
[1757352439585,0.8574,4342.5,4342.4,1.04487]
[1757352439979,0.8574,4342.5,4342.4,1.32707]
[1757352442783,0.6499,4342.5,4342.4,1.32707]
[1757352444091,0.317,4342.5,4342.4,1.32707]
[1757352445788,0.317,4342.5,4342.4,0.9126]
[1757352445990,0.6499,4342.5,4342.4,1.32707]